fUSD/lending_fUSD_20240428
["ID","MTS","AMOUNT","RATE_DAILY","PERIOD"]
[323774584,1714282241073,-1034.268095,0.00019999,2]
[323774585,1714282241085,-509.441905,0.00019999,2]
[323774586,1714282241095,-500.0,0.00019999,2]
[323774587,1714282241105,-144.058095,0.00020273,2]
[323774588,1714282241122,-496.27636977,0.00020273,2]
[323774589,1714282241136,-903.37553523,0.00020273,2]
[323774590,1714282241148,-312.92308006,0.00020273,2]
[323774591,1714282241157,-48.74019616,0.0002041,2]
[323774592,1714282241166,-2226.18,0.0002041,2]
[323774593,1714282241175,-1330.88,0.0002041,2]
[323774594,1714282241185,-347.64259701,0.0002041,2]
[323774595,1714282241194,-501.46208042,0.0002041,2]
[323774596,1714282241203,-1568.67,0.0002041,2]
[323774597,1714282241213,-503.3235296,0.0002041,2]
[323774598,1714282241225,-2189.73,0.0002041,2]
[323774599,1714282241235,-500.0,0.0002041,2]
[323774600,1714282241245,-501.27802258,0.0002041,2]
[323774601,1714282241255,-500.0,0.0002041,2]
[323774602,1714282241264,-1013.1,0.0002041,2]
[323774603,1714282241275,-501.03855016,0.0002041,2]
[323774604,1714282241285,-500.0,0.0002041,2]
[323774605,1714282241294,-418.49102229,0.0002041,2]
[323774606,1714282241306,-357.15199915,0.0002041,2]
[323774607,1714282241361,-1493.25697856,0.0002041,2]
[323774608,1714282241374,-980.25,0.0002041,2]
[323774609,1714282241385,-500.0,0.0002041,2]
[323774610,1714282241395,-500.0,0.0002041,2]
[323774611,1714282241407,-1533.71,0.0002041,2]
[323774612,1714282241416,-500.0,0.0002041,2]
[323774613,1714282241427,-491.22829024,0.0002041,2]
[323774614,1714282241439,-500.0,0.0002041,2]
[323774615,1714282241449,-500.0,0.0002041,2]
[323774616,1714282241458,-481.26959497,0.0002041,2]
[323774626,1714282243573,-179.74414857,0.00010467,2]
[323774627,1714282243583,-500.0,0.00019999,2]
[323774628,1714282243593,-500.0,0.00019999,2]
[323774629,1714282243603,-74.85927512,0.00019999,2]
[323774630,1714282243638,-466.86072488,0.00019999,2]
[323774631,1714282243648,-500.0,0.00019999,2]
[323774632,1714282243657,-500.0,0.00019999,2]
[323774633,1714282243666,-500.0,0.00020273,2]
[323774634,1714282243676,-500.0,0.00020273,2]
[323774635,1714282243685,-500.0,0.00020273,2]
[323774636,1714282243695,-166.34515989,0.000204,2]
[323774637,1714282243704,-658.26040503,0.0002041,2]
[323774638,1714282243714,-500.0,0.0002041,2]
[323774639,1714282243723,-1032.41876702,0.0002041,2]
[323774640,1714282243748,-265.41123298,0.0002041,2]
[323774641,1714282243757,-159.887584,0.0002041,2]
[323774642,1714282243767,-501.29273345,0.0002041,2]
[323774643,1714282243776,-510.00515534,0.0002041,2]
[323774644,1714282243785,-918.68,0.0002041,2]
[323774645,1714282243794,-682.81,0.0002041,2]
[323774646,1714282243803,-500.0,0.0002041,2]
[323774647,1714282243814,-563.66450075,0.0002041,2]
[323774648,1714282243823,-2306.44,0.0002041,2]
[323774649,1714282243832,-500.0,0.0002041,2]
[323774651,1714282243841,-500.0,0.0002041,2]
[323774653,1714282243851,-2033.6,0.0002041,2]
[323774654,1714282243860,-183.51862595,0.0002041,2]
[323774655,1714282243869,-277.30213266,0.0002041,2]
[323774656,1714282243878,-500.0,0.0002041,2]
[323774657,1714282243888,-199.85948,0.0002041,2]
[323774658,1714282243897,-505.07557849,0.0002041,2]
[323774659,1714282243907,-500.0,0.0002041,2]
[323774660,1714282243916,-1140.59,0.0002041,2]
[323774661,1714282243925,-614.25,0.0002041,2]
[323774662,1714282243934,-509.18282474,0.0002041,2]
[323774663,1714282243944,-500.0,0.0002041,2]
[323774664,1714282243953,-504.03423599,0.0002041,2]
[323774665,1714282243963,-500.0,0.0002041,2]
[323774666,1714282243972,-612.13,0.0002041,2]
[323774667,1714282243982,-500.0,0.0002041,2]
[323774668,1714282243991,-2096.8,0.0002041,2]
[323774669,1714282244001,-1885.16,0.0002041,2]
[323774670,1714282244010,-500.0,0.0002041,2]
[323774671,1714282244020,-500.0,0.0002041,2]
[323774672,1714282244029,-500.0,0.0002041,2]
[323774673,1714282244040,-500.0,0.0002041,2]
[323774674,1714282244049,-500.0,0.0002041,2]
[323774675,1714282244059,-500.0,0.0002041,2]
[323774676,1714282244069,-523.62793013,0.0002041,2]
[323774677,1714282244078,-500.0,0.0002041,2]
[323774678,1714282244088,-1054.63,0.0002041,2]
[323774679,1714282244097,-559.36598861,0.0002041,2]
[323774680,1714282244106,-539.70659348,0.0002041,2]
[323774681,1714282244115,-500.0,0.0002041,2]
[323774682,1714282244125,-1168.26,0.0002041,2]
[323774683,1714282244136,-500.0,0.0002041,2]
[323774684,1714282244148,-1342.14,0.0002041,2]
[323774685,1714282244157,-500.0,0.0002041,2]
[323774686,1714282244167,-642.02,0.0002041,2]
[323774687,1714282244176,-1763.92,0.0002041,2]
[323774688,1714282244187,-500.0,0.0002041,2]
[323774689,1714282244196,-503.18445599,0.0002041,2]
[323774690,1714282244206,-572.37,0.0002041,2]
[323774691,1714282244215,-500.0,0.0002041,2]
[323774692,1714282244225,-503.11075855,0.0002041,2]
[323774693,1714282244235,-607.73,0.0002041,2]
[323774694,1714282244243,-500.0,0.0002041,2]
[323774695,1714282244253,-500.0,0.0002041,2]
[323774696,1714282244263,-501.65782742,0.0002041,2]
[323774697,1714282244272,-500.0,0.0002041,2]
[323774698,1714282244281,-1109.04,0.0002041,2]
[323774699,1714282244290,-500.0,0.0002041,2]
[323774700,1714282244299,-1656.26,0.0002041,2]
[323774701,1714282244309,-500.0,0.0002041,2]
[323774702,1714282244318,-500.0,0.0002041,2]
[323774703,1714282244327,-786.95,0.0002041,2]
[323774704,1714282244336,-500.0,0.0002041,2]
[323774705,1714282244345,-500.0,0.0002041,2]
[323774706,1714282244355,-500.0,0.0002041,2]
[323774707,1714282244364,-1660.2,0.0002041,2]
[323774708,1714282244373,-598.1526676,0.0002041,2]
[323774709,1714282244382,-1571.36,0.0002041,2]
[323774710,1714282244391,-500.0,0.0002041,2]
[323774711,1714282244401,-500.0,0.0002041,2]
[323774712,1714282244410,-500.0,0.0002041,2]
[323774713,1714282244419,-500.0,0.0002041,2]
[323774714,1714282244428,-500.0,0.0002041,2]
[323774715,1714282244437,-500.0,0.0002041,2]
[323774716,1714282244446,-500.0,0.0002041,2]
[323774717,1714282244455,-500.0,0.0002041,2]
[323774718,1714282244464,-500.0,0.0002041,2]
[323774719,1714282244473,-1919.35,0.0002041,2]
[323774720,1714282244482,-500.0,0.0002041,2]
[323774721,1714282244492,-637.69956529,0.0002041,2]
[323774722,1714282244501,-500.0,0.0002041,2]
[323774723,1714282244510,-660.72,0.0002041,2]
[323774724,1714282244520,-1529.85,0.0002041,2]
[323774725,1714282244529,-500.0,0.0002041,2]
[323774726,1714282244537,-500.0,0.0002041,2]
[323774727,1714282244547,-500.0,0.0002041,2]
[323774728,1714282244556,-500.0,0.0002041,2]
[323774729,1714282244566,-500.0,0.0002041,2]
[323774730,1714282244575,-500.0,0.0002041,2]
[323774731,1714282244584,-873.62,0.0002041,2]
[323774732,1714282244593,-500.0,0.0002041,2]
[323774733,1714282244603,-500.0,0.0002041,2]
[323774734,1714282244612,-502.16269679,0.0002041,2]
[323774735,1714282244621,-500.0,0.0002041,2]
[323774736,1714282244631,-500.0,0.0002041,2]
[323774737,1714282244640,-500.0,0.0002041,2]
[323774738,1714282244649,-500.0,0.0002041,2]
[323774739,1714282244660,-501.55108675,0.0002041,2]
[323774740,1714282244669,-500.0,0.0002041,2]
[323774741,1714282244679,-883.56,0.0002041,2]
[323774742,1714282244688,-500.0,0.0002041,2]
[323774743,1714282244697,-500.0,0.0002041,2]
[323774744,1714282244707,-500.0,0.0002041,2]
[323774745,1714282244716,-500.0,0.0002041,2]
[323774746,1714282244725,-500.0,0.0002041,2]
[323774747,1714282244735,-500.0,0.0002041,2]
[323774748,1714282244744,-540.72,0.0002041,2]
[323774749,1714282244953,-578.16,0.0002041,2]
[323774750,1714282244965,-500.0,0.0002041,2]
[323774751,1714282244975,-500.0,0.0002041,2]
[323774752,1714282244984,-500.0,0.0002041,2]
[323774753,1714282244993,-500.0,0.0002041,2]
[323774754,1714282245003,-500.0,0.0002041,2]
[323774755,1714282245012,-1514.09,0.0002041,2]
[323774756,1714282245021,-1975.69,0.0002041,2]
[323774757,1714282245031,-500.0,0.0002041,2]
[323774758,1714282245040,-500.0,0.0002041,2]
[323774759,1714282245050,-1876.21,0.0002041,2]
[323774760,1714282245060,-3223.16,0.0002041,2]
[323774761,1714282245069,-500.0,0.0002041,2]
[323774762,1714282245078,-500.0,0.0002041,2]
[323774763,1714282245088,-500.0,0.0002041,2]
[323774764,1714282245097,-1968.95,0.0002041,2]
[323774765,1714282245106,-500.0,0.0002041,2]
[323774766,1714282245116,-519.96,0.0002041,2]
[323774767,1714282245126,-500.0,0.0002041,2]
[323774768,1714282245135,-365.68092125,0.0002041,2]
[323774769,1714282245149,-500.0,0.0002041,2]
[323774770,1714282245158,-4617.3,0.0002041,2]
[323774771,1714282245168,-500.0,0.0002041,2]
[323774772,1714282245177,-500.0,0.0002041,2]
[323774773,1714282245187,-500.0,0.0002041,2]
[323774774,1714282245196,-4983.12,0.0002041,2]
[323774775,1714282245206,-500.44977325,0.0002041,2]
[323774776,1714282245216,-500.0,0.0002041,2]
[323774777,1714282245225,-725.06,0.0002041,2]
[323774778,1714282245235,-500.0,0.0002041,2]
[323774779,1714282245245,-500.0,0.0002041,2]
[323774780,1714282245254,-500.0,0.0002041,2]
[323774781,1714282245264,-1787.11,0.0002041,2]
[323774782,1714282245273,-5137.94,0.0002041,2]
[323774783,1714282245283,-500.0,0.0002041,2]
[323774784,1714282245292,-1290.56,0.0002041,2]
[323774785,1714282245302,-500.0,0.0002041,2]
[323774786,1714282245311,-500.0,0.0002041,2]
[323774787,1714282245321,-500.0,0.0002041,2]
[323774788,1714282245330,-500.0,0.0002041,2]
[323774789,1714282245339,-3123.61,0.0002041,2]
[323774790,1714282245349,-500.67438474,0.0002041,2]
[323774791,1714282245358,-500.0,0.0002041,2]
[323774792,1714282245367,-1866.27,0.0002041,2]
[323774793,1714282245376,-500.0,0.0002041,2]
[323774794,1714282245385,-766.12,0.0002041,2]
[323774795,1714282245395,-500.0,0.0002041,2]
[323774796,1714282245404,-500.0,0.0002041,2]
[323774797,1714282245413,-500.0,0.0002041,2]
[323774798,1714282245422,-500.0,0.0002041,2]
[323774799,1714282245431,-500.0,0.0002041,2]
[323774800,1714282245440,-650.52,0.0002041,2]
[323774801,1714282245450,-969.5,0.0002041,2]
[323774802,1714282245459,-500.0,0.0002041,2]
[323774803,1714282245469,-500.0,0.0002041,2]
[323774804,1714282245478,-46264.85,0.0002041,2]
[323774805,1714282245488,-500.55146469,0.0002041,2]
[323774806,1714282245497,-510.97026024,0.0002041,2]
[323774807,1714282245506,-687.26,0.0002041,2]
[323774808,1714282245516,-1315.19,0.0002041,2]
[323774809,1714282245525,-208.48552891,0.0002041,2]
[323774810,1714282245535,-502.0079406,0.0002041,2]
[323774811,1714282245545,-500.0,0.0002041,2]
[323774812,1714282245553,-1377.7,0.0002041,2]
[323774813,1714282245563,-500.0,0.0002041,2]
[323774814,1714282245573,-500.40126853,0.0002041,2]
[323774815,1714282245582,-500.0,0.0002041,2]
[323774816,1714282245591,-2218.04,0.0002041,2]
[323774817,1714282245601,-2648.53,0.0002041,2]
[323774818,1714282245611,-500.44490471,0.0002041,2]
[323774819,1714282245621,-500.0,0.0002041,2]
[323774820,1714282245630,-500.0,0.0002041,2]
[323774821,1714282245639,-500.0,0.0002041,2]
[323774822,1714282245649,-1993.28,0.0002041,2]
[323774823,1714282245658,-500.18465927,0.0002041,2]
[323774824,1714282245667,-500.0,0.0002041,2]
[323774825,1714282245677,-1115.64,0.0002041,2]
[323774826,1714282245686,-500.0,0.0002041,2]
[323774827,1714282245695,-500.0,0.0002041,2]
[323774828,1714282245704,-500.0,0.0002041,2]
[323774829,1714282245713,-4877.39,0.0002041,2]
[323774830,1714282245722,-500.0,0.0002041,2]
[323774831,1714282245731,-1289.86,0.0002041,2]
[323774832,1714282245741,-500.0,0.0002041,2]
[323774833,1714282245750,-500.0,0.0002041,2]
[323774834,1714282245759,-2346.51,0.0002041,2]
[323774835,1714282245768,-500.0,0.0002041,2]
[323774836,1714282245777,-501.23414642,0.0002041,2]
[323774837,1714282245786,-500.0,0.0002041,2]
[323774838,1714282245795,-500.62350026,0.0002041,2]
[323774839,1714282245804,-2436.77,0.0002041,2]
[323774840,1714282245814,-500.0,0.0002041,2]
[323774841,1714282245823,-500.0,0.0002041,2]
[323774842,1714282245833,-500.0,0.0002041,2]
[323774843,1714282245842,-500.66199173,0.0002041,2]
[323774844,1714282245851,-500.0,0.0002041,2]
[323774845,1714282245860,-2002.1,0.0002041,2]
[323774846,1714282245869,-500.0,0.0002041,2]
[323774847,1714282245879,-500.0,0.0002041,2]
[323774848,1714282245888,-500.0,0.0002041,2]
[323774849,1714282245897,-500.0,0.0002041,2]
[323774850,1714282245907,-899.57,0.0002041,2]
[323774851,1714282245916,-500.61134778,0.0002041,2]
[323774852,1714282245926,-500.0,0.0002041,2]
[323774853,1714282245935,-500.0,0.0002041,2]
[323774854,1714282245944,-500.0,0.0002041,2]
[323774855,1714282245953,-1166.27,0.0002041,2]
[323774856,1714282245963,-497.83299021,0.0002041,2]
[323774857,1714282245972,-500.0,0.0002041,2]
[323774858,1714282245980,-501.21822154,0.0002041,2]
[323774859,1714282245990,-500.0,0.0002041,2]
[323774860,1714282246000,-500.0,0.0002041,2]
[323774861,1714282246009,-776.07,0.0002041,2]
[323774862,1714282246018,-554.93,0.0002041,2]
[323774863,1714282246028,-7013.93,0.0002041,2]
[323774864,1714282246037,-1970.77,0.0002041,2]
[323774865,1714282246055,-500.0,0.0002041,2]
[323774866,1714282246072,-500.0,0.0002041,2]
[323774867,1714282246089,-500.0,0.0002041,2]
[323774868,1714282246108,-640.06678789,0.0002041,2]
[323774869,1714282246123,-2164.0,0.0002041,2]
[323774870,1714282246141,-500.0,0.0002041,2]
[323774871,1714282246161,-2297.26,0.0002041,2]
[323774872,1714282246175,-897.16,0.0002041,2]
[323774873,1714282246196,-500.0,0.0002041,2]
[323774874,1714282246215,-500.0,0.0002041,2]
[323774875,1714282246232,-500.32288124,0.0002041,2]
[323774876,1714282246250,-500.0,0.0002041,2]
[323774877,1714282246271,-500.0,0.0002041,2]
[323774878,1714282246284,-742.86422858,0.00020438,10]
[323774879,1714282246301,-150.0,0.00020459,2]
[323774880,1714282246317,-449.01235933,0.00020499,2]
[323774881,1714282246329,-150.0,0.000205,2]
[323774882,1714282246344,-150.0,0.00020505,2]
[323774883,1714282246360,-1996.49,0.00020508,2]
[323774884,1714282246381,-3414.12,0.00020508,2]
[323774885,1714282246395,-2932.54,0.00020508,2]
[323774886,1714282246435,-9071.06,0.00020508,2]
[323774887,1714282246449,-6665.86,0.00020508,2]
[323774888,1714282246466,-2798.91,0.00020508,2]
[323774889,1714282246481,-26107.22,0.00020508,2]
[323774890,1714282246498,-500.0,0.00020508,2]
[323774891,1714282246513,-7546.18,0.00020508,2]
[323774892,1714282246528,-3040.52,0.00020508,2]
[323774893,1714282246545,-603.41,0.00020508,2]
[323774894,1714282246560,-4043.17,0.00020508,2]
[323774895,1714282246576,-2718.66,0.00020508,2]
[323774896,1714282246591,-5606.17,0.00020508,2]
[323774897,1714282246606,-3045.78,0.00020508,2]
[323774898,1714282246624,-458.04299075,0.00020509,2]
[323774899,1714282246642,-262.4977061,0.00020509,2]
[323774900,1714282246658,-785.68422127,0.00020509,2]
[323774901,1714282246675,-158.26245048,0.00020509,2]
[323774902,1714282246691,-972.91738658,0.00020509,2]
[323774903,1714282246706,-322.28170193,0.00020509,2]
[323774904,1714282246723,-18013.95355616,0.00020509,2]
[323774905,1714282246739,-1254.67959002,0.00020509,2]
[323774906,1714282246755,-316.44060217,0.00020509,2]
[323774907,1714282246772,-155.090443,0.00020509,2]
[323774908,1714282246789,-208.0556677,0.00020509,2]
[323774909,1714282246807,-575.86201296,0.00020509,2]
[323774910,1714282246825,-2656.72,0.00020509,2]
[323774911,1714282246843,-4195.2,0.00020509,2]
[323774912,1714282246859,-2852.1,0.00020509,2]
[323774913,1714282246877,-4626.66,0.00020509,2]
[323774914,1714282246891,-14080.31,0.00020509,2]
[323774915,1714282246907,-911.57,0.00020509,2]
[323774916,1714282246922,-2982.48,0.00020509,2]
[323774917,1714282246937,-3795.13,0.00020509,2]
[323774918,1714282246952,-2681.11,0.00020509,2]
[323774919,1714282246966,-3479.45,0.00020509,2]
[323774920,1714282246982,-2853.63,0.00020509,2]
[323774921,1714282246998,-8054.83,0.00020509,2]
[323774922,1714282247014,-1663.84,0.00020509,2]
[323774923,1714282247030,-6620.07,0.00020509,2]
[323774924,1714282247046,-9175.66,0.00020509,2]
[323774925,1714282247060,-1350.02,0.00020509,2]
[323774926,1714282247074,-2733.73,0.00020509,2]
[323774927,1714282247090,-997.07454029,0.0002051,2]
[323774928,1714282247105,-7340.64841283,0.0002051,2]
[323774929,1714282247121,-79444.99059635,0.00020511,2]
[323774930,1714282247147,-1113.69820365,0.00020511,2]
[323774931,1714282247162,-742.86422858,0.00020521,10]
[323774932,1714282247180,-343.57,0.00020527,2]
[323774933,1714282247197,-670.28,0.00020547,2]
[323774934,1714282247213,-716.84,0.00020547,2]
[323774935,1714282247230,-500.0,0.00020547,2]
[323774936,1714282247249,-842.26,0.00020547,2]
[323774937,1714282247265,-500.0,0.00020547,2]
[323774938,1714282247281,-500.0,0.00020547,2]
[323774939,1714282247297,-500.0,0.00020547,2]
[323774940,1714282247315,-1212.94,0.00020547,2]
[323774941,1714282247331,-1113.08,0.00020547,2]
[323774942,1714282247347,-500.0,0.00020547,2]
[323774943,1714282247363,-755.4,0.00020547,2]
[323774944,1714282247378,-898.58,0.00020547,2]
[323774945,1714282247394,-500.0,0.00020547,2]
[323774946,1714282247410,-1543.71,0.00020547,2]
[323774947,1714282247425,-500.0,0.00020547,2]
[323774948,1714282247441,-500.0,0.00020547,2]
[323774949,1714282247456,-577.0,0.00020548,2]
[323774950,1714282247471,-174.54400576,0.00020583,2]
[323774951,1714282247486,-151.29703378,0.00020595,2]
[323774952,1714282247502,-221.47751285,0.00020595,2]
[323774953,1714282247518,-10000.0,0.00020599,2]
[323774954,1714282247534,-2819.89058089,0.00020599,2]
[323774955,1714282247548,-596.93954528,0.00020599,2]
[323774956,1714282247562,-405.7429208,0.00020599,2]
[323774957,1714282247577,-3647.44,0.00020629,2]
[323774958,1714282247591,-500.0,0.00020629,2]
[323774959,1714282247605,-2576.23,0.00020629,2]
[323774960,1714282247620,-987.17,0.00020629,2]
[323774961,1714282247635,-500.0,0.00020629,2]
[323774962,1714282247650,-1416.04,0.00020629,2]
[323774963,1714282247667,-2993.27,0.00020629,2]
[323774964,1714282247682,-807.44,0.00020629,2]
[323774965,1714282247697,-11352.12,0.00020629,2]
[323774966,1714282247712,-3262.53,0.00020629,2]
[323774967,1714282247727,-1424.12,0.00020629,2]
[323774968,1714282247741,-18191.66,0.00020629,2]
[323774969,1714282247757,-707.64,0.00020629,2]
[323774970,1714282247771,-5078.88,0.00020629,2]
[323774971,1714282247785,-8152.98,0.00020629,2]
[323774972,1714282247801,-2679.08,0.00020629,2]
[323774973,1714282247817,-4210.3,0.00020629,2]
[323774974,1714282247828,-500.0,0.00020629,2]
[323774975,1714282247837,-2198.1,0.00020629,2]
[323774976,1714282247846,-12249.83,0.00020629,2]
[323774977,1714282247857,-1924.23,0.00020629,2]
[323774978,1714282247866,-2815.11,0.00020629,2]
[323774979,1714282247875,-9557.42,0.00020629,2]
[323774980,1714282247884,-1025.44,0.00020629,2]
[323774981,1714282247893,-500.0,0.00020629,2]
[323774982,1714282247902,-2980.99,0.00020629,2]
[323774983,1714282248225,-742.86422858,0.0002063,10]
[323774984,1714282248256,-159.18519184,0.0002063,10]
[323774985,1714282248284,-2339.15,0.00020683,2]
[323774986,1714282248293,-552.62,0.00020683,2]
[323774987,1714282248302,-43627.71,0.00020683,2]
[323774988,1714282248312,-3811.19,0.00020683,2]
[323774989,1714282248321,-1513.71,0.00020683,2]
[323774990,1714282248330,-3724.04,0.00020683,2]
[323774991,1714282248340,-1402.64,0.00020683,2]
[323774992,1714282248350,-2912.29,0.00020683,2]
[323774993,1714282248359,-1659.12,0.00020683,2]
[323774994,1714282248368,-2363.68,0.00020683,2]
[323774995,1714282248378,-2732.26,0.00020683,2]
[323774996,1714282248388,-2646.28,0.00020683,2]
[323774997,1714282248399,-2256.54,0.00020683,2]
[323774998,1714282248409,-1179.17,0.00020683,2]
[323774999,1714282248419,-13704.21,0.00020683,2]
[323775000,1714282248429,-2685.62,0.00020683,2]
[323775001,1714282248439,-2083.06,0.00020683,2]
[323775002,1714282248449,-8979.98,0.00020683,2]
[323775003,1714282248459,-2371.94,0.00020683,2]
[323775004,1714282248471,-1131.19,0.00020683,2]
[323775005,1714282248480,-2616.26,0.00020683,2]
[323775006,1714282248493,-7615.12,0.00020683,2]
[323775007,1714282248504,-2162.56,0.00020683,2]
[323775008,1714282248513,-500.0,0.00020683,2]
[323775009,1714282248524,-1001.43,0.00020683,2]
[323775010,1714282248534,-3263.48,0.00020683,2]
[323775011,1714282248545,-4993.92,0.00020683,2]
[323775012,1714282248556,-509.89,0.00020683,2]
[323775013,1714282248567,-2001.23,0.00020683,2]
[323775014,1714282248577,-500.0,0.00020683,2]
[323775015,1714282248588,-3615.79,0.00020683,2]
[323775016,1714282248598,-3490.3,0.00020683,2]
[323775017,1714282248609,-500.0,0.00020683,2]
[323775018,1714282248619,-500.0,0.00020684,2]
[323775019,1714282248630,-506.81871369,0.00020684,2]
[323775020,1714282248639,-500.0,0.00020684,2]
[323775021,1714282248648,-1280.06,0.00020684,2]
[323775022,1714282248658,-500.0,0.00020684,2]
[323775023,1714282248669,-1266.88,0.00020684,2]
[323775024,1714282248679,-500.0,0.00020684,2]
[323775025,1714282248689,-500.0,0.00020684,2]
[323775026,1714282248699,-2698.6,0.00020684,2]
[323775027,1714282248709,-954.93,0.00020684,2]
[323775028,1714282248718,-544.62780921,0.00020684,2]
[323775029,1714282248727,-500.92488623,0.00020684,2]
[323775030,1714282248736,-500.0,0.00020684,2]
[323775031,1714282248748,-410.54517325,0.00020684,2]
[323775032,1714282248758,-500.0,0.00020684,2]
[323775033,1714282248768,-500.0,0.00020684,2]
[323775034,1714282248780,-504.14614454,0.00020684,2]
[323775035,1714282248790,-500.0,0.00020684,2]
[323775036,1714282248799,-460.87830955,0.00020684,2]
[323775037,1714282248808,-500.0,0.00020684,2]
[323775038,1714282248817,-1850.96,0.00020684,2]
[323775039,1714282248826,-502.34361241,0.00020684,2]
[323775040,1714282248835,-297.34185919,0.00020684,2]
[323775041,1714282248845,-500.0,0.00020684,2]
[323775042,1714282248853,-2226.18,0.00020684,2]
[323775043,1714282248864,-1330.88,0.00020684,2]
[323775044,1714282248873,-1568.67,0.00020684,2]
[323775045,1714282248882,-2189.73,0.00020684,2]
[323775046,1714282248891,-500.0,0.00020684,2]
[323775047,1714282248900,-1013.1,0.00020684,2]
[323775048,1714282248909,-500.0,0.00020684,2]
[323775049,1714282248918,-2268.9,0.00020684,2]
[323775050,1714282248928,-980.25,0.00020684,2]
[323775051,1714282248937,-500.0,0.00020684,2]
[323775052,1714282248946,-500.0,0.00020684,2]
[323775053,1714282248955,-1533.71,0.00020684,2]
[323775054,1714282248964,-500.0,0.00020684,2]
[323775055,1714282248974,-500.0,0.00020684,2]
[323775056,1714282248983,-1139.53,0.00020684,2]
[323775057,1714282248993,-502.45420466,0.00020684,2]
[323775058,1714282249002,-1297.83,0.00020684,2]
[323775059,1714282249012,-918.68,0.00020684,2]
[323775060,1714282249021,-682.81,0.00020684,2]
[323775061,1714282249030,-500.0,0.00020684,2]
[323775062,1714282249039,-2306.44,0.00020684,2]
[323775063,1714282249048,-500.0,0.00020684,2]
[323775064,1714282249058,-500.0,0.00020684,2]
[323775065,1714282249067,-2033.6,0.00020684,2]
[323775066,1714282249077,-500.0,0.00020684,2]
[323775067,1714282249086,-500.0,0.00020684,2]
[323775068,1714282249095,-1140.59,0.00020684,2]
[323775069,1714282249105,-614.25,0.00020684,2]
[323775070,1714282249114,-504.90507909,0.00020684,2]
[323775071,1714282249123,-500.0,0.00020684,2]
[323775072,1714282249132,-612.13,0.00020684,2]
[323775073,1714282249143,-500.0,0.00020684,2]
[323775074,1714282249153,-2096.8,0.00020684,2]
[323775075,1714282249163,-1885.16,0.00020684,2]
[323775076,1714282249172,-500.0,0.00020684,2]
[323775077,1714282249182,-500.0,0.00020684,2]
[323775078,1714282249191,-500.0,0.00020684,2]
[323775079,1714282249200,-628.97899654,0.00020684,2]
[323775080,1714282249210,-500.0,0.00020684,2]
[323775081,1714282249221,-500.0,0.00020684,2]
[323775082,1714282249230,-1054.63,0.00020684,2]
[323775083,1714282249241,-500.0,0.00020684,2]
[323775084,1714282249250,-1168.26,0.00020684,2]
[323775085,1714282249258,-503.15969692,0.00020684,2]
[323775086,1714282249267,-1342.14,0.00020684,2]
[323775087,1714282249278,-547.13734523,0.00020684,2]
[323775088,1714282249288,-642.02,0.00020684,2]
[323775089,1714282249298,-1763.92,0.00020684,2]
[323775090,1714282249309,-500.0,0.00020684,2]
[323775091,1714282249319,-572.37,0.00020684,2]
[323775092,1714282249330,-500.0,0.00020684,2]
[323775093,1714282249339,-607.73,0.00020684,2]
[323775094,1714282249350,-503.43129635,0.00020684,2]